[Event "*** Titled Tuesday 3|2 Blitz"]
[Site "Chess.com"]
[Date "2016.06.07"]
[Round "6"]
[White "Keaton87"]
[Black "biostatistician"]
[Result "1-0"]
[WhiteElo "2481"]
[BlackElo "2301"]
[TimeControl "180+2"]
[EndTime "12:15:16 PDT"]
[Termination "Keaton87 won by resignation"]

1. e4 {[%clk 0:03:01.9]} 1... e6 {[%clk 0:03:00.8]} 2. d4 {[%clk 0:03:02.4]}
2... d5 {[%clk 0:03:02.7]} 3. Nd2 {[%clk 0:03:04.1]} 3... Nc6 {[%clk 0:03:03.4]}
4. Ngf3 {[%clk 0:03:03.1]} 4... Nf6 {[%clk 0:03:04.8]} 5. e5 {[%clk 0:03:03.4]}
5... Ne4 {[%clk 0:03:06.3]} 6. Bd3 {[%clk 0:03:00.4]} 6... Nxd2 {[%clk
0:03:05.3]} 7. Bxd2 {[%clk 0:03:02.3]} 7... Nb4 {[%clk 0:03:06.9]} 8. Bxb4
{[%clk 0:03:01.1]} 8... Bxb4+ {[%clk 0:03:08.8]} 9. c3 {[%clk 0:03:02.4]} 9...
Be7 {[%clk 0:03:09.9]} 10. O-O {[%clk 0:03:03.2]} 10... c5 {[%clk 0:03:10.8]}
11. dxc5 {[%clk 0:02:59.5]} 11... Bxc5 {[%clk 0:03:12.7]} 12. b4 {[%clk
0:03:00.1]} 12... Be7 {[%clk 0:03:10.7]} 13. Nd4 {[%clk 0:03:01]} 13... Bd7
{[%clk 0:03:11.6]} 14. f4 {[%clk 0:03:01.4]} 14... O-O {[%clk 0:03:09]} 15. Qd2
{[%clk 0:02:57.8]} 15... a5 {[%clk 0:03:05.4]} 16. a3 {[%clk 0:02:56.4]} 16...
Qb6 {[%clk 0:03:04]} 17. Kh1 {[%clk 0:02:55.9]} 17... f6 {[%clk 0:03:00.8]} 18.
exf6 {[%clk 0:02:33.9]} 18... Bxf6 {[%clk 0:03:02.7]} 19. Nf3 {[%clk 0:02:34.6]}
19... axb4 {[%clk 0:02:53.9]} 20. axb4 {[%clk 0:02:34.2]} 20... Rxa1 {[%clk
0:02:53.3]} 21. Rxa1 {[%clk 0:02:36.1]} 21... Rc8 {[%clk 0:02:53.3]} 22. Ne5
{[%clk 0:02:36.2]} 22... Bxe5 {[%clk 0:02:47.6]} 23. fxe5 {[%clk 0:02:38.1]}
23... Qc7 {[%clk 0:02:48.3]} 24. Qf4 {[%clk 0:02:37.5]} 24... Be8 {[%clk
0:02:02.4]} 25. Rf1 {[%clk 0:02:27.4]} 25... Bg6 {[%clk 0:02:03.1]} 26. Bxg6
{[%clk 0:02:20.8]} 26... hxg6 {[%clk 0:02:05]} 27. Rf3 {[%clk 0:02:21.6]} 27...
Qe7 {[%clk 0:01:57.8]} 28. h4 {[%clk 0:02:16]} 28... Rf8 {[%clk 0:01:45.6]} 29.
Qxf8+ {[%clk 0:02:16.6]} 29... Qxf8 {[%clk 0:01:47.5]} 30. Rxf8+ {[%clk
0:02:17.4]} 30... Kxf8 {[%clk 0:01:49.4]} 31. Kh2 {[%clk 0:02:18.7]} 31... Ke7
{[%clk 0:01:45.3]} 32. Kg3 {[%clk 0:02:19.3]} 32... Kd7 {[%clk 0:01:46.6]} 33.
Kg4 {[%clk 0:02:19.9]} 33... Kc6 {[%clk 0:01:48.2]} 34. Kg5 {[%clk 0:02:12.5]}
34... Kb5 {[%clk 0:01:48.6]} 35. Kxg6 {[%clk 0:02:13.7]} 35... Kc4 {[%clk
0:01:50]} 36. Kxg7 {[%clk 0:02:13.6]} 36... Kxc3 {[%clk 0:01:51.2]} 37. h5
{[%clk 0:02:14.8]} 37... d4 {[%clk 0:01:52.7]} 38. h6 {[%clk 0:02:16]} 38... d3
{[%clk 0:01:54.6]} 39. h7 {[%clk 0:02:17.1]} 39... d2 {[%clk 0:01:56.5]} 40.
h8=Q {[%clk 0:02:18.3]} 40... d1=Q {[%clk 0:01:58.4]} 41. Qc8+ {[%clk
0:02:14.1]} 41... Kxb4 {[%clk 0:01:56.8]} 42. Qxb7+ {[%clk 0:02:14.9]} 42... Kc5
{[%clk 0:01:43.7]} 43. Qc7+ {[%clk 0:02:12.7]} 43... Kb5 {[%clk 0:01:43.2]} 44.
Qb7+ {[%clk 0:02:13.5]} 44... Kc5 {[%clk 0:01:44.2]} 45. Qc8+ {[%clk 0:02:14.5]}
45... Kb5 {[%clk 0:01:35.7]} 46. Qxe6 {[%clk 0:02:15.4]} 46... Qh5 {[%clk
0:01:30.7]} 47. g4 {[%clk 0:01:56.7]} 47... Qg5+ {[%clk 0:01:29.4]} 48. Kf7
{[%clk 0:01:58]} 48... Kc5 {[%clk 0:01:24.5]} 49. Qf5 {[%clk 0:01:56.1]} 49...
Qh6 {[%clk 0:01:24.2]} 50. e6+ {[%clk 0:01:50.5]} 50... Kd6 {[%clk 0:01:23.7]}
51. e7 {[%clk 0:01:48.7]} 51... Qc1 {[%clk 0:00:47.1]} 52. e8=Q {[%clk
0:01:35.8]} 52... Qc4+ {[%clk 0:00:47.7]} 53. Qee6+ {[%clk 0:01:36.3]} 1-0

[Event "*** Titled Tuesday 3|2 Blitz"]
[Site "Chess.com"]
[Date "2016.06.07"]
[Round "6"]
[White "Aguiar94"]
[Black "Newlight1"]
[Result "1-0"]
[WhiteElo "2336"]
[BlackElo "2166"]
[TimeControl "180+2"]
[EndTime "12:15:26 PDT"]
[Termination "Aguiar94 won by resignation"]

1. e4 {[%clk 0:03:01.9]} 1... c5 {[%clk 0:03:00.3]} 2. Nf3 {[%clk 0:03:03.2]}
2... d6 {[%clk 0:03:00.9]} 3. d4 {[%clk 0:03:04.6]} 3... cxd4 {[%clk 0:03:02.4]}
4. Nxd4 {[%clk 0:03:06.5]} 4... Nf6 {[%clk 0:03:02.8]} 5. Nc3 {[%clk 0:03:07.8]}
5... a6 {[%clk 0:03:04.3]} 6. h3 {[%clk 0:03:09.2]} 6... g6 {[%clk 0:03:03.9]}
7. Be3 {[%clk 0:03:08.3]} 7... Bg7 {[%clk 0:03:04.7]} 8. Qd2 {[%clk 0:03:07.6]}
8... Bd7 {[%clk 0:03:03.9]} 9. O-O-O {[%clk 0:03:07.5]} 9... Nc6 {[%clk
0:03:04.5]} 10. f4 {[%clk 0:03:07]} 10... Rc8 {[%clk 0:03:04.6]} 11. g4 {[%clk
0:03:06.3]} 11... Na5 {[%clk 0:03:01.1]} 12. f5 {[%clk 0:03:05.2]} 12... b5
{[%clk 0:02:57.4]} 13. g5 {[%clk 0:03:01.2]} 13... b4 {[%clk 0:02:51]} 14. Nd5
{[%clk 0:02:30.6]} 14... Nxe4 {[%clk 0:02:16.6]} 15. Qxb4 {[%clk 0:02:02]} 15...
Ng3 {[%clk 0:02:11.1]} 16. f6 {[%clk 0:01:49.3]} 16... exf6 {[%clk 0:01:48.4]}
17. gxf6 {[%clk 0:01:47]} 17... Bxf6 {[%clk 0:01:18.6]} 18. Qxd6 {[%clk
0:01:43.8]} 18... Ne4 {[%clk 0:01:17]} 19. Nxf6+ {[%clk 0:00:59.7]} 19... Qxf6
{[%clk 0:01:10.8]} 20. Qxf6 {[%clk 0:00:53.8]} 20... Nxf6 {[%clk 0:01:12.7]} 21.
Bh6 {[%clk 0:00:45.5]} 21... Rg8 {[%clk 0:00:35]} 22. Re1+ {[%clk 0:00:40.8]}
22... Kd8 {[%clk 0:00:34.1]} 23. Bg5 {[%clk 0:00:40.8]} 23... Kc7 {[%clk
0:00:30.9]} 24. Bxf6 {[%clk 0:00:40.9]} 24... Kb7 {[%clk 0:00:31.8]} 25. Re7
{[%clk 0:00:38.5]} 25... Rc7 {[%clk 0:00:31.1]} 26. Be5 {[%clk 0:00:38.6]} 26...
Nc6 {[%clk 0:00:30.2]} 27. Bg2 {[%clk 0:00:37.1]} 27... Re8 {[%clk 0:00:25.6]}
28. Nxc6 {[%clk 0:00:30.6]} 28... Bxc6 {[%clk 0:00:24.6]} 29. Rxc7+ {[%clk
0:00:30.6]} 1-0

[Event "*** Titled Tuesday 3|2 Blitz"]
[Site "Chess.com"]
[Date "2016.06.07"]
[Round "6"]
[White "INbetweenMOVE"]
[Black "Philofive"]
[Result "1-0"]
[WhiteElo "2338"]
[BlackElo "2335"]
[TimeControl "180+2"]
[EndTime "12:15:49 PDT"]
[Termination "INbetweenMOVE won by resignation"]

1. d4 {[%clk 0:03:01.9]} 1... Nf6 {[%clk 0:03:00.4]} 2. Bg5 {[%clk 0:03:02]}
2... c5 {[%clk 0:03:00.6]} 3. d5 {[%clk 0:03:01.8]} 3... Ne4 {[%clk 0:02:58]} 4.
h4 {[%clk 0:02:57.7]} 4... Qb6 {[%clk 0:02:23.4]} 5. Nd2 {[%clk 0:02:56.9]} 5...
Nxd2 {[%clk 0:02:17.9]} 6. Bxd2 {[%clk 0:02:58.8]} 6... Qxb2 {[%clk 0:02:13.9]}
7. Nf3 {[%clk 0:02:59.9]} 7... d6 {[%clk 0:02:02]} 8. Rb1 {[%clk 0:02:51.3]}
8... Qa3 {[%clk 0:02:00.9]} 9. e4 {[%clk 0:02:51.5]} 9... Nd7 {[%clk 0:01:57.2]}
10. Bb5 {[%clk 0:02:23.3]} 10... a6 {[%clk 0:01:54.3]} 11. Bxd7+ {[%clk
0:02:16.2]} 11... Kxd7 {[%clk 0:01:53.2]} 12. Ng5 {[%clk 0:01:58.8]} 12... Qa4
{[%clk 0:01:41.7]} 13. O-O {[%clk 0:01:53.6]} 13... f6 {[%clk 0:01:15.3]} 14.
Ne6 {[%clk 0:01:31.1]} 14... Qxe4 {[%clk 0:00:59.2]} 15. Ba5 {[%clk 0:01:31.2]}
15... b5 {[%clk 0:00:44.6]} 16. Re1 {[%clk 0:01:21.3]} 16... Qxh4 {[%clk
0:00:41.9]} 17. Qe2 {[%clk 0:01:13.5]} 17... f5 {[%clk 0:00:35.3]} 18. Nc7
{[%clk 0:01:05.8]} 18... Qf6 {[%clk 0:00:07.1]} 19. Nxa8 {[%clk 0:01:04.7]}
19... Bb7 {[%clk 0:00:08.6]} 20. Nb6+ {[%clk 0:01:04.1]} 20... Ke8 {[%clk
0:00:09.9]} 21. Qe6 {[%clk 0:01:03.9]} 21... Qxe6 {[%clk 0:00:08.9]} 22. dxe6
{[%clk 0:01:05.8]} 22... g6 {[%clk 0:00:06.9]} 23. Bc3 {[%clk 0:01:06.8]} 23...
Rg8 {[%clk 0:00:07]} 24. Nd7 {[%clk 0:01:07.4]} 24... Bh6 {[%clk 0:00:07.6]} 25.
a4 {[%clk 0:01:03.8]} 25... b4 {[%clk 0:00:08]} 26. Bxb4 {[%clk 0:01:05.1]}
26... cxb4 {[%clk 0:00:08.5]} 27. Rxb4 {[%clk 0:01:07]} 27... Bc8 {[%clk
0:00:09.1]} 28. Rb8 {[%clk 0:01:07.6]} 28... Kd8 {[%clk 0:00:10.7]} 29. Reb1
{[%clk 0:01:04.7]} 29... Kc7 {[%clk 0:00:11.9]} 30. Ra8 {[%clk 0:00:48.9]} 30...
Bxd7 {[%clk 0:00:09.5]} 31. Rxg8 {[%clk 0:00:47.4]} 31... Bxe6 {[%clk
0:00:10.7]} 32. Ra8 {[%clk 0:00:48]} 32... Bg5 {[%clk 0:00:07]} 33. Rxa6 {[%clk
0:00:46.7]} 33... Bc4 {[%clk 0:00:06.4]} 34. Ra7+ {[%clk 0:00:47.8]} 34... Kc6
{[%clk 0:00:07.5]} 35. a5 {[%clk 0:00:48.7]} 35... d5 {[%clk 0:00:08.6]} 36. a6
{[%clk 0:00:49.5]} 36... d4 {[%clk 0:00:08.8]} 37. Ra8 {[%clk 0:00:48.8]} 1-0

[Event "*** Titled Tuesday 3|2 Blitz"]
[Site "Chess.com"]
[Date "2016.06.07"]
[Round "6"]
[White "ItalianMachine"]
[Black "Boryboy"]
[Result "0-1"]
[WhiteElo "2333"]
[BlackElo "2543"]
[TimeControl "180+2"]
[EndTime "12:15:58 PDT"]
[Termination "Boryboy won by resignation"]

1. e4 {[%clk 0:03:01.9]} 1... e6 {[%clk 0:03:00.7]} 2. d4 {[%clk 0:02:57.1]}
2... d5 {[%clk 0:03:00]} 3. Nd2 {[%clk 0:02:58.2]} 3... Be7 {[%clk 0:03:00.2]}
4. e5 {[%clk 0:02:56.7]} 4... c5 {[%clk 0:02:53]} 5. c3 {[%clk 0:02:57.6]} 5...
Nc6 {[%clk 0:02:54]} 6. Bb5 {[%clk 0:02:53.2]} 6... Qb6 {[%clk 0:02:54.8]} 7.
Bxc6+ {[%clk 0:02:51.2]} 7... bxc6 {[%clk 0:02:56.7]} 8. Ne2 {[%clk 0:02:50.3]}
8... Ba6 {[%clk 0:02:56.2]} 9. O-O {[%clk 0:02:49.6]} 9... Nh6 {[%clk
0:02:56.6]} 10. Nf3 {[%clk 0:02:45.1]} 10... Nf5 {[%clk 0:02:56.2]} 11. Re1
{[%clk 0:02:46.7]} 11... cxd4 {[%clk 0:02:55.6]} 12. Nexd4 {[%clk 0:02:46.1]}
12... Nxd4 {[%clk 0:02:56.8]} 13. Nxd4 {[%clk 0:02:45.8]} 13... O-O {[%clk
0:02:41.4]} 14. Qg4 {[%clk 0:02:44.1]} 14... Bd3 {[%clk 0:02:42.5]} 15. Re3
{[%clk 0:02:41.2]} 15... Bg6 {[%clk 0:02:42.5]} 16. h4 {[%clk 0:02:28.3]} 16...
h5 {[%clk 0:02:41.1]} 17. Qh3 {[%clk 0:02:26.3]} 17... c5 {[%clk 0:02:39.6]} 18.
Ne2 {[%clk 0:02:22]} 18... d4 {[%clk 0:02:40.9]} 19. cxd4 {[%clk 0:02:18]} 19...
cxd4 {[%clk 0:02:42.8]} 20. Rg3 {[%clk 0:02:16.4]} 20... Bf5 {[%clk 0:02:37]}
21. Qh2 {[%clk 0:02:14.3]} 21... Rfd8 {[%clk 0:02:23.8]} 22. Nf4 {[%clk
0:02:11.1]} 22... Qa5 {[%clk 0:02:13.7]} 23. Kf1 {[%clk 0:01:25.3]} 23... Qxe5
{[%clk 0:02:03.7]} 24. Bd2 {[%clk 0:01:11.3]} 24... Bh7 {[%clk 0:01:49.7]} 25.
Re1 {[%clk 0:01:04.5]} 25... Qb5+ {[%clk 0:01:50.2]} 26. Kg1 {[%clk 0:01:05.2]}
26... Bf6 {[%clk 0:01:50.6]} 27. b3 {[%clk 0:01:02.2]} 27... Qf5 {[%clk
0:01:49.4]} 28. Rf3 {[%clk 0:00:52.9]} 28... Qc2 {[%clk 0:01:44.1]} 29. Bc1
{[%clk 0:00:41.5]} 29... d3 {[%clk 0:01:40.4]} 30. Nxh5 {[%clk 0:00:38.5]} 30...
d2 {[%clk 0:01:41.3]} 31. Bxd2 {[%clk 0:00:39.9]} 31... Qxd2 {[%clk 0:01:42.3]}
32. Nxf6+ {[%clk 0:00:41.1]} 32... gxf6 {[%clk 0:01:43.2]} 33. Qg3+ {[%clk
0:00:36]} 33... Kh8 {[%clk 0:01:44.3]} 34. Ree3 {[%clk 0:00:31.8]} 34... Qd1+
{[%clk 0:01:29.3]} 35. Kh2 {[%clk 0:00:32.5]} 35... Qd6 {[%clk 0:01:30.9]} 36.
Rf4 {[%clk 0:00:32.6]} 36... Rg8 {[%clk 0:01:30.4]} 37. Qf3 {[%clk 0:00:33.9]}
37... Rac8 {[%clk 0:01:12.5]} 38. g3 {[%clk 0:00:34.5]} 38... f5 {[%clk
0:01:06.4]} 39. Qh5 {[%clk 0:00:34.6]} 39... Rc7 {[%clk 0:01:03.6]} 40. Qh6
{[%clk 0:00:21.2]} 40... Qd8 {[%clk 0:00:53.5]} 41. Qh5 {[%clk 0:00:15.4]} 41...
Rg6 {[%clk 0:00:52.6]} 42. g4 {[%clk 0:00:15.5]} 42... Qd6 {[%clk 0:00:50.8]}
0-1

[Event "*** Titled Tuesday 3|2 Blitz"]
[Site "Chess.com"]
[Date "2016.06.07"]
[Round "6"]
[White "GeorgMeier"]
[Black "Keranke"]
[Result "1-0"]
[WhiteElo "2715"]
[BlackElo "2571"]
[TimeControl "180+2"]
[EndTime "12:16:00 PDT"]
[Termination "GeorgMeier won by resignation"]

1. Nf3 {[%clk 0:03:01.9]} 1... g6 {[%clk 0:02:59.7]} 2. d4 {[%clk 0:03:00.3]}
2... Bg7 {[%clk 0:03:01.6]} 3. g3 {[%clk 0:03:01.9]} 3... Nf6 {[%clk 0:03:02.7]}
4. Bg2 {[%clk 0:03:03.4]} 4... O-O {[%clk 0:03:04.6]} 5. O-O {[%clk 0:03:05.3]}
5... d5 {[%clk 0:03:04.9]} 6. c4 {[%clk 0:03:04.7]} 6... dxc4 {[%clk 0:03:03]}
7. Na3 {[%clk 0:03:05.7]} 7... Be6 {[%clk 0:03:03.2]} 8. Ng5 {[%clk 0:03:06.5]}
8... Bd5 {[%clk 0:03:04.2]} 9. e4 {[%clk 0:03:05.7]} 9... h6 {[%clk 0:03:04.9]}
10. exd5 {[%clk 0:03:04.2]} 10... hxg5 {[%clk 0:03:06.8]} 11. Bxg5 {[%clk
0:03:04.6]} 11... Nxd5 {[%clk 0:03:06.3]} 12. Nxc4 {[%clk 0:03:05.5]} 12... Nc6
{[%clk 0:03:07.3]} 13. Ne3 {[%clk 0:02:53.4]} 13... Nxe3 {[%clk 0:02:53.4]} 14.
fxe3 {[%clk 0:02:43.5]} 14... Qd6 {[%clk 0:02:33.5]} 15. Rc1 {[%clk 0:02:35.1]}
15... e5 {[%clk 0:02:17.1]} 16. d5 {[%clk 0:02:34.1]} 16... Nb4 {[%clk
0:02:02.4]} 17. e4 {[%clk 0:01:53.7]} 17... Nxa2 {[%clk 0:01:43.5]} 18. Rc4
{[%clk 0:01:53.9]} 18... Nb4 {[%clk 0:01:42]} 19. Be3 {[%clk 0:01:19]} 19... b6
{[%clk 0:01:30.9]} 20. Qd2 {[%clk 0:01:11.7]} 20... a5 {[%clk 0:01:23.4]} 21.
Rfc1 {[%clk 0:01:13.1]} 21... Ra7 {[%clk 0:01:18.2]} 22. h4 {[%clk 0:01:11.2]}
22... Rd8 {[%clk 0:01:16.8]} 23. Qe2 {[%clk 0:01:02]} 23... Rb7 {[%clk
0:00:33.3]} 24. Kh2 {[%clk 0:01:02.2]} 24... f5 {[%clk 0:00:26]} 25. Bd2 {[%clk
0:00:55.5]} 25... Ra7 {[%clk 0:00:10.5]} 26. Bxb4 {[%clk 0:00:53.8]} 26... axb4
{[%clk 0:00:12.4]} 27. Rc6 {[%clk 0:00:55.4]} 27... Qe7 {[%clk 0:00:14]} 28.
Rxg6 {[%clk 0:00:54.8]} 28... f4 {[%clk 0:00:15.6]} 29. Bh3 {[%clk 0:00:44.8]}
29... Rd6 {[%clk 0:00:12.5]} 30. Be6+ {[%clk 0:00:39.2]} 30... Kf8 {[%clk
0:00:13.7]} 31. Qg4 {[%clk 0:00:37.4]} 31... Ra2 {[%clk 0:00:12.5]} 32. Rc2
{[%clk 0:00:35.1]} 32... b3 {[%clk 0:00:13.3]} 33. Rf2 {[%clk 0:00:36]} 33...
Rxe6 {[%clk 0:00:04.3]} 34. dxe6 {[%clk 0:00:25.3]} 34... Qc5 {[%clk 0:00:03.6]}
35. Qf5+ {[%clk 0:00:23.3]} 1-0

[Event "*** Titled Tuesday 3|2 Blitz"]
[Site "Chess.com"]
[Date "2016.06.07"]
[Round "6"]
[White "viktorskliarov"]
[Black "ChessMavenYeti"]
[Result "1/2-1/2"]
[WhiteElo "2347"]
[BlackElo "2145"]
[TimeControl "180+2"]
[EndTime "12:16:08 PDT"]
[Termination "Game drawn by agreement"]

1. e4 {[%clk 0:02:58]} 1... d6 {[%clk 0:03:00.9]} 2. d4 {[%clk 0:02:58.5]} 2...
Nf6 {[%clk 0:03:01.4]} 3. Nc3 {[%clk 0:03:00]} 3... e5 {[%clk 0:03:02.2]} 4.
Nge2 {[%clk 0:03:01.1]} 4... Be7 {[%clk 0:02:59.8]} 5. f3 {[%clk 0:03:01.4]}
5... O-O {[%clk 0:03:00.6]} 6. Be3 {[%clk 0:03:00.9]} 6... c6 {[%clk 0:03:01.2]}
7. Qd2 {[%clk 0:03:01.8]} 7... b5 {[%clk 0:03:02.3]} 8. g4 {[%clk 0:03:02.8]}
8... Qa5 {[%clk 0:02:56.6]} 9. Ng3 {[%clk 0:03:03]} 9... Rd8 {[%clk 0:02:55.3]}
10. Nf5 {[%clk 0:03:03.4]} 10... Bxf5 {[%clk 0:02:51.8]} 11. gxf5 {[%clk
0:03:03.9]} 11... b4 {[%clk 0:02:42.2]} 12. Ne2 {[%clk 0:03:04.5]} 12... Nbd7
{[%clk 0:02:28.5]} 13. Bg2 {[%clk 0:02:52.8]} 13... Nb6 {[%clk 0:02:19.5]} 14.
b3 {[%clk 0:02:52.7]} 14... Nfd7 {[%clk 0:02:06.2]} 15. O-O {[%clk 0:02:52]}
15... Bf6 {[%clk 0:02:02]} 16. a4 {[%clk 0:02:50.8]} 16... exd4 {[%clk
0:01:58.3]} 17. Bxd4 {[%clk 0:02:49.6]} 17... Bxd4+ {[%clk 0:01:57.4]} 18. Nxd4
{[%clk 0:02:50.1]} 18... Qc5 {[%clk 0:01:56.3]} 19. Kh1 {[%clk 0:02:49.6]} 19...
d5 {[%clk 0:01:52.9]} 20. a5 {[%clk 0:02:37.2]} 20... Nc8 {[%clk 0:01:16.7]} 21.
Rad1 {[%clk 0:02:27]} 21... dxe4 {[%clk 0:00:51.2]} 22. Ne6 {[%clk 0:02:27.3]}
22... fxe6 {[%clk 0:00:50.7]} 23. fxe6 {[%clk 0:02:27.8]} 23... e3 {[%clk
0:00:44.8]} 24. Qd3 {[%clk 0:02:19]} 24... e2 {[%clk 0:00:45]} 25. Qxe2 {[%clk
0:02:16.6]} 25... Qe7 {[%clk 0:00:46.1]} 26. Rxd7 {[%clk 0:02:13.3]} 26... Rxd7
{[%clk 0:00:46.1]} 27. exd7 {[%clk 0:02:14.2]} 27... Qxd7 {[%clk 0:00:46.9]} 28.
Qc4+ {[%clk 0:02:13.7]} 28... Kh8 {[%clk 0:00:46]} 29. Qxb4 {[%clk 0:02:14.6]}
29... Ne7 {[%clk 0:00:44.5]} 30. Re1 {[%clk 0:02:14.2]} 30... Nd5 {[%clk
0:00:43.9]} 31. Qe4 {[%clk 0:02:14.8]} 31... h6 {[%clk 0:00:40]} 32. c4 {[%clk
0:02:12.2]} 32... Nf6 {[%clk 0:00:38.1]} 33. Qe7 {[%clk 0:02:08.2]} 33... Qd2
{[%clk 0:00:39.1]} 34. Qe3 {[%clk 0:01:54.6]} 34... Qxa5 {[%clk 0:00:37.9]} 35.
Rd1 {[%clk 0:01:55.6]} 35... Re8 {[%clk 0:00:34.2]} 36. Qf2 {[%clk 0:01:51.2]}
36... Qc3 {[%clk 0:00:29.7]} 37. Qxa7 {[%clk 0:01:50.3]} 37... Qxb3 {[%clk
0:00:26.1]} 38. Rc1 {[%clk 0:01:50.8]} 38... Qe3 {[%clk 0:00:23]} 39. Qxe3
{[%clk 0:01:50.1]} 39... Rxe3 {[%clk 0:00:24.9]} 40. f4 {[%clk 0:01:51.5]} 40...
c5 {[%clk 0:00:23.9]} 41. Rb1 {[%clk 0:01:51.5]} 41... Rc3 {[%clk 0:00:23.7]}
42. Bf1 {[%clk 0:01:49.1]} 42... Nh5 {[%clk 0:00:20.6]} 43. Rb5 {[%clk
0:01:46.8]} 43... Rc1 {[%clk 0:00:17.8]} 44. Kg1 {[%clk 0:01:47.2]} 44... Nxf4
{[%clk 0:00:18.1]} 45. Rxc5 {[%clk 0:01:48.4]} 45... Kg8 {[%clk 0:00:12.4]} 46.
Kf2 {[%clk 0:01:46.9]} 46... Rc2+ {[%clk 0:00:11.2]} 47. Kf3 {[%clk 0:01:48.1]}
47... Ne6 {[%clk 0:00:11.5]} 48. Rc8+ {[%clk 0:01:48.8]} 48... Kf7 {[%clk
0:00:11.8]} 49. Bd3 {[%clk 0:01:49.8]} 49... Rxh2 {[%clk 0:00:08.7]} 50. c5
{[%clk 0:01:50.8]} 50... Rd2 {[%clk 0:00:08.7]} 51. Ke3 {[%clk 0:01:51.4]} 51...
Rd1 {[%clk 0:00:10]} 52. c6 {[%clk 0:01:50.9]} 52... Rc1 {[%clk 0:00:11.2]} 53.
Kd2 {[%clk 0:01:51.3]} 53... Rc5 {[%clk 0:00:11.5]} 54. Bc2 {[%clk 0:01:51.3]}
54... Nd4 {[%clk 0:00:11]} 55. Be4 {[%clk 0:01:51.1]} 55... Kf6 {[%clk
0:00:10.6]} 1/2-1/2

[Event "*** Titled Tuesday 3|2 Blitz"]
[Site "Chess.com"]
[Date "2016.06.07"]
[Round "6"]
[White "DrHolmes13"]
[Black "jcibarra"]
[Result "1-0"]
[WhiteElo "2387"]
[BlackElo "2635"]
[TimeControl "180+2"]
[EndTime "12:16:11 PDT"]
[Termination "DrHolmes13 won by checkmate"]

1. Nf3 {[%clk 0:03:01.9]} 1... Nf6 {[%clk 0:03:00.9]} 2. c4 {[%clk 0:03:02.9]}
2... g6 {[%clk 0:03:02]} 3. Nc3 {[%clk 0:03:03.6]} 3... Bg7 {[%clk 0:03:03.5]}
4. e4 {[%clk 0:03:04.5]} 4... d6 {[%clk 0:03:04.1]} 5. d4 {[%clk 0:03:05.7]}
5... O-O {[%clk 0:03:05.8]} 6. Be2 {[%clk 0:03:06.8]} 6... e5 {[%clk 0:03:07.3]}
7. O-O {[%clk 0:03:06.5]} 7... Nc6 {[%clk 0:03:06.9]} 8. d5 {[%clk 0:03:07.3]}
8... Ne7 {[%clk 0:03:08.3]} 9. Ne1 {[%clk 0:03:08.8]} 9... c5 {[%clk 0:03:09]}
10. Nd3 {[%clk 0:03:05.3]} 10... Ne8 {[%clk 0:03:08.3]} 11. b4 {[%clk
0:03:06.3]} 11... cxb4 {[%clk 0:03:07.5]} 12. Nxb4 {[%clk 0:03:07.1]} 12... f5
{[%clk 0:03:09.4]} 13. Nd3 {[%clk 0:03:06.4]} 13... b6 {[%clk 0:03:09.1]} 14. a4
{[%clk 0:02:59.9]} 14... fxe4 {[%clk 0:03:05.6]} 15. Nxe4 {[%clk 0:03:00.5]}
15... Ba6 {[%clk 0:03:07.2]} 16. Nb4 {[%clk 0:02:59.3]} 16... Bb7 {[%clk
0:03:06.7]} 17. Bg5 {[%clk 0:02:58.1]} 17... Nf6 {[%clk 0:02:55.9]} 18. Bxf6
{[%clk 0:02:46.8]} 18... Bxf6 {[%clk 0:02:57.8]} 19. Bg4 {[%clk 0:02:45.9]}
19... Nf5 {[%clk 0:02:53.5]} 20. Qd3 {[%clk 0:02:34.4]} 20... Nd4 {[%clk
0:02:52.3]} 21. Nc2 {[%clk 0:02:33.5]} 21... Bg7 {[%clk 0:02:50.1]} 22. Nxd4
{[%clk 0:02:28.5]} 22... exd4 {[%clk 0:02:52]} 23. Be6+ {[%clk 0:02:29.7]} 23...
Kh8 {[%clk 0:02:52.8]} 24. f4 {[%clk 0:02:30.3]} 24... Bc8 {[%clk 0:02:39.1]}
25. Ng5 {[%clk 0:02:29.2]} 25... Qf6 {[%clk 0:02:23]} 26. Bxc8 {[%clk
0:02:08.9]} 26... Raxc8 {[%clk 0:02:24.9]} 27. Rae1 {[%clk 0:02:07.9]} 27... Qf5
{[%clk 0:02:21]} 28. Re4 {[%clk 0:01:56.8]} 28... Rfe8 {[%clk 0:02:16.5]} 29.
Ne6 {[%clk 0:01:56.9]} 29... Rxc4 {[%clk 0:02:09.4]} 30. Rfe1 {[%clk 0:01:39.2]}
30... Qxd5 {[%clk 0:02:09.7]} 31. Nc7 {[%clk 0:01:32.8]} 31... Rxe4 {[%clk
0:02:07.7]} 32. Nxd5 {[%clk 0:01:08.7]} 32... Rxe1+ {[%clk 0:02:08.4]} 33. Kf2
{[%clk 0:01:10.3]} 33... Rcc1 {[%clk 0:01:59.1]} 34. Qb5 {[%clk 0:01:00.7]}
34... d3 {[%clk 0:01:37.4]} 35. Qxd3 {[%clk 0:00:58.6]} 35... Rcd1 {[%clk
0:01:28.4]} 36. Qc4 {[%clk 0:00:54.3]} 36... Bd4+ {[%clk 0:01:28.8]} 37. Kg3
{[%clk 0:00:54.8]} 37... Bc5 {[%clk 0:01:22.1]} 38. h3 {[%clk 0:00:52.4]} 38...
Rd4 {[%clk 0:01:18]} 39. Qb3 {[%clk 0:00:50.1]} 39... Ra1 {[%clk 0:01:15.8]} 40.
Kh2 {[%clk 0:00:39.5]} 40... Ra3 {[%clk 0:01:12.4]} 41. Qb5 {[%clk 0:00:40.3]}
41... Rxd5 {[%clk 0:01:00.7]} 42. Qe8+ {[%clk 0:00:40.6]} 42... Kg7 {[%clk
0:01:02.3]} 43. Qe7+ {[%clk 0:00:37.4]} 43... Kh6 {[%clk 0:00:48]} 44. Qf8+
{[%clk 0:00:21.2]} 44... Kh5 {[%clk 0:00:49.1]} 45. g4+ {[%clk 0:00:22.6]} 45...
Kh4 {[%clk 0:00:50.6]} 46. Qf6+ {[%clk 0:00:23.5]} 46... g5 {[%clk 0:00:46.7]}
47. Qh6# {[%clk 0:00:24.6]} 1-0